fUSD/lending_fUSD_20250407
["ID","MTS","AMOUNT","RATE_DAILY","PERIOD"]
[357360557,1744019345650,-876.54,0.00022571,2]
[357360558,1744019345671,-876.54,0.00022576,2]
[357360559,1744019345691,-876.54,0.00022582,2]
[357360560,1744019345712,-876.54,0.00022588,2]
[357360561,1744019345733,-250.0,0.0002259,2]
[357360562,1744019345754,-350.0,0.0002259,12]
[357360563,1744019345775,-876.54,0.00022594,2]
[357360564,1744019345796,-876.54,0.000226,2]
[357360565,1744019345821,-876.54,0.00022606,2]
[357360566,1744019345842,-876.54,0.00022612,2]
[357360567,1744019345863,-876.54,0.00022618,2]
[357360568,1744019345886,-876.54,0.00022624,2]
[357360569,1744019345907,-1310.27,0.00022666,2]
[357360570,1744019345928,-330.7695246,0.00022726,2]
[357360571,1744019345948,-215.0738,0.00022726,2]
[357360572,1744019345968,-745.65223616,0.00022728,2]
[357360573,1744019345988,-21006.37,0.00022752,2]
[357360574,1744019346008,-350.0,0.00023,2]
[357360575,1744019346028,-150.0,0.00023073,2]
[357360576,1744019346048,-23900.0,0.00023185,2]
[357360577,1744019346070,-164.86140192,0.00023271,2]
[357360578,1744019346090,-773.2413689,0.00023276,2]
[357360579,1744019346110,-150.0,0.00023287,2]
[357360580,1744019346130,-1000.0,0.00023304,2]
[357360581,1744019346149,-300.0,0.00023371,2]
[357360582,1744019346170,-200.0,0.00023456,7]
[357360583,1744019346190,-150.0,0.00023456,2]
[357360584,1744019346210,-801.85129955,0.00023824,2]
[357360585,1744019346230,-218.19,0.00023836,2]
[357360586,1744019346251,-383.98,0.00023953,2]
[357360587,1744019346270,-500.0,0.00024,20]
[357360588,1744019346291,-223.0315306,0.00024095,2]
[357360589,1744019346313,-1104.1,0.00024153,2]
[357360590,1744019346333,-1808.39,0.00024174,2]
[357360591,1744019346352,-19999.99,0.00024174,2]
[357360592,1744019346372,-250.0,0.00024408,2]
[357360593,1744019346394,-236.92501195,0.00024657,2]
[357360594,1744019346414,-1000.0,0.00024658,2]
[357360595,1744019346435,-300.0,0.0002474,2]
[357360596,1744019346455,-500.0,0.00024773,2]
[357360597,1744019346475,-502.41170348,0.00024773,2]
[357360598,1744019346495,-502.35256817,0.00024773,2]
[357360599,1744019346515,-500.0,0.00024773,2]
[357360600,1744019346535,-500.0,0.00024773,2]
[357360601,1744019346556,-500.01597978,0.00024773,2]
[357360602,1744019346581,-500.0,0.00024773,2]
[357360603,1744019346605,-500.0,0.00024773,2]
[357360604,1744019346625,-500.0,0.00024773,2]
[357360605,1744019346646,-195.37492292,0.0002479,2]
[357360606,1744019346668,-151.37,0.0002479,2]
[357360607,1744019346689,-8233.54525854,0.000248,2]
[357360608,1744019354623,666.66666,0.000248,34]
[357360609,1744019354671,666.66667,0.000298,34]
[357360610,1744019356666,1000.0,0.000199,2]
[357360611,1744019357261,-500.0,0.00023271,2]
[357360612,1744019357283,-5182.54226886,0.000248,2]
[357360613,1744019357303,-173.21067649,0.000249,2]
[357360614,1744019357343,-400.0,0.00025,2]
[357360615,1744019357362,-770.66903947,0.00025,2]
[357360616,1744019357382,-256.14469854,0.00025,2]
[357360617,1744019357402,-225.42516596,0.00025,2]
[357360618,1744019357421,-200.0,0.00025,2]
[357360619,1744019357441,-280.0,0.000253,10]
[357360620,1744019357461,-13416.0875274,0.00025442,2]
[357360621,1744019357481,-503.67275824,0.00025452,2]
[357360622,1744019357501,-1000.0,0.00025452,2]
[357360623,1744019357522,-231.28369723,0.00025464,2]
[357360624,1744019357541,-184.85,0.0002583,2]
[357360625,1744019357562,-264.33726749,0.00025882,2]
[357360626,1744019357587,-500.0,0.00025973,2]
[357360627,1744019357607,-3055.92406596,0.00026,2]
[357360628,1744019357627,-1000.0,0.00026216,2]
[357360629,1744019357647,-1104.1,0.00026417,2]
[357360630,1744019357667,-239.84119403,0.00026833,2]
[357360631,1744019357891,-154.55,0.00026849,2]
[357360632,1744019357913,-450.0,0.00027,2]
[357360633,1744019357935,-250.0,0.00027,2]
[357360634,1744019357956,-995.67932919,0.00027,2]
[357360635,1744019357976,-151.37,0.0002715,2]
[357360636,1744019357997,-15643.8772428,0.00027285,2]
[357360637,1744019358017,-159.35,0.00027385,2]
[357360638,1744019358038,-232.63,0.00027397,2]
[357360639,1744019358059,-7992.7,0.00027397,2]
[357360640,1744019358083,-391.0,0.0002783,15]
[357360641,1744019358105,-162.53,0.00028,2]
[357360642,1744019358128,-13416.0875274,0.0002817,2]
[357360643,1744019358150,-503.50634492,0.0002818,5]
[357360644,1744019358173,-248.71531821,0.00028202,2]
[357360645,1744019358194,-250.0,0.0002842,2]
[357360646,1744019358216,-1104.1,0.00028681,2]
[357360647,1744019358237,-232.63,0.00028767,2]
[357360648,1744019358260,-510.0,0.00029041,2]
[357360649,1744019358281,-1000.0,0.00029129,2]
[357360650,1744019358302,-257.91778498,0.00029571,2]
[357360651,1744019358328,-26832.1750549,0.00029889,2]
[357360652,1744019358349,-75535.78918484,0.000299,2]
[357360653,1744019358371,-13416.0875274,0.0002998,2]
[357360654,1744019358393,-228.38461818,0.0002999,2]
[357360655,1744019358415,-151.37,0.0002999,2]
[357360656,1744019358437,-40248.2625823,0.0002999,2]
[357360657,1744019358457,-300.0,0.0003,7]
[357360658,1744019358478,-6209.77129321,0.0003,20]
[357360659,1744019358499,-17486.4163116,0.0003,2]
[357360660,1744019358521,-2193.9525204,0.0003,2]
[357360661,1744019359089,-166.67,0.00027908,2]
[357360662,1744019359111,-4228.35051388,0.0003,2]
[357360663,1744019362180,-166.67,0.0002906,2]
[357360664,1744019362202,-1541.63856,0.0003,2]
[357360665,1744019367107,-215.490926,0.0003,2]
[357360666,1744019369065,2500.0,0.000199,2]
[357360667,1744019369098,-419.2013308,0.0003,2]
[357360668,1744019375419,18045.0682,0.000199,2]
[357360669,1744019380020,170.27,0.00013699,2]
[357360670,1744019402740,200.0,0.00029999,30]
[357360671,1744019407432,890.93896008,0.00033,120]
[357360675,1744019432355,-510.80455454,0.00029999,2]
[357360676,1744019432364,-10184.92328012,0.0003,2]
[357360677,1744019432375,-1315.05914698,0.0003,2]
[357360678,1744019432390,-697.08410392,0.0003,2]
[357360679,1744019432401,-30584.8476423,0.0003,2]
[357360683,1744019432471,-450.0,0.0003,2]
[357360695,1744019432586,-235.14626657,0.0003,2]
[357360697,1744019432597,-257.66361362,0.0003,2]
[357360716,1744019432784,-438.25924277,0.0003,2]
[357360732,1744019432934,-298.40740433,0.0003,2]
[357360734,1744019432945,-6101.6,0.0003,2]
[357360736,1744019432957,-426.36644233,0.0003,2]
[357360738,1744019432968,-503.4735659,0.0003,2]
[357360740,1744019432979,-310.31,0.0003,2]
[357360745,1744019433017,-255.97559429,0.0003,2]
[357360751,1744019433061,-547.10656,0.0003,2]
[357360753,1744019433073,-574.01311803,0.0003,2]
[357360764,1744019433184,-14957.15879302,0.0003,2]
[357360766,1744019433197,-270.33973497,0.0003,2]
[357360842,1744019438128,-925.76300281,0.000274,2]
[357360843,1744019438140,-669.98017432,0.0003,2]
[357360844,1744019438167,-768.52901586,0.0003,2]
[357360845,1744019438352,-1953.75561649,0.0003,2]
[357360846,1744019438361,-200.0,0.0003,2]
[357360847,1744019438371,-1225.31691807,0.00030037,2]
[357360848,1744019438381,-232.63,0.00030137,2]
[357360849,1744019438394,-166.67,0.00030211,2]
[357360850,1744019438404,-1006.62755569,0.00030252,5]
[357360852,1744019438413,-200.0,0.000303,2]
[357360853,1744019438423,-4612.72767528,0.0003032,2]
[357360855,1744019439852,150.0,0.00027,120]
[357360857,1744019440054,150.0,0.000323,120]
[357360858,1744019440532,250.0,0.00019,2]
[357360861,1744019440848,-835.22283745,0.0003032,2]
[357360862,1744019440866,-7968.13701467,0.0003032,2]
[357360863,1744019440881,-5765.53320217,0.0003033,2]
[357360864,1744019440900,-9878.34404061,0.0003033,2]
[357360865,1744019440915,-289.99,0.0003062,2]
[357360866,1744019440929,-299.99,0.0003062,12]
[357360867,1744019440945,-9999.99,0.0003062,2]
[357360868,1744019440960,-150.99,0.0003062,2]
[357360869,1744019440974,-150.99,0.0003062,2]
[357360870,1744019440989,-999.99,0.0003062,2]
[357360871,1744019441004,-3621.94,0.0003062,90]
[357360872,1744019441019,-13416.0875274,0.0003093,2]
[357360873,1744019441034,-267.46074303,0.0003094,2]
[357360874,1744019441048,-1104.1,0.00030945,2]
[357360875,1744019441062,-11997.16,0.00031149,2]
[357360876,1744019441077,-166.67,0.00031363,2]
[357360877,1744019441091,-232.63,0.00031507,2]
[357360878,1744019441104,-249.0255496,0.0003167,40]
[357360879,1744019441114,-500.0,0.0003167,50]
[357360880,1744019441124,-1310.27,0.00031732,2]
[357360881,1744019441133,-264.33726749,0.00031863,2]
[357360882,1744019441148,-500.0,0.00032,45]
[357360883,1744019441158,-1000.0,0.00032042,2]
[357360884,1744019441168,-277.35679052,0.00032309,2]
[357360885,1744019441177,-502.22703452,0.00032328,5]
[357360886,1744019441525,-161.73180093,0.00032328,5]
[357360887,1744019441547,-500.0,0.00032328,5]
[357360888,1744019441557,-500.0,0.00032328,5]
[357360889,1744019441567,-500.0,0.00032328,5]
[357360890,1744019441575,-500.92927184,0.00032328,5]
[357360891,1744019441585,-1000.0,0.00032368,30]
[357360892,1744019441595,-166.67,0.00032514,2]
[357360893,1744019441605,-200.0,0.000328,11]
[357360894,1744019441615,-240.0,0.00032835,2]
[357360895,1744019441627,-150.0,0.00032835,20]
[357360896,1744019441637,-159.35,0.00032862,2]
[357360897,1744019441649,-232.63,0.00032877,2]
[357360898,1744019441659,-4541.50768879,0.0003289,2]
[357360899,1744019441668,-1331.37198738,0.000329,30]
[357360900,1744019441679,-500.0,0.000329,12]
[357360901,1744019441688,-656.62551939,0.000329,4]
[357360902,1744019441699,-500.0,0.00032973,5]
[357360903,1744019441709,-500.0,0.00032973,5]
[357360904,1744019441719,-358.36,0.0003298,2]
[357360905,1744019441728,-358.36,0.0003298,2]
[357360906,1744019441737,-358.36,0.0003298,2]
[357360907,1744019441747,-358.36,0.0003298,2]
[357360908,1744019441756,-358.36,0.0003298,2]
[357360909,1744019441765,-358.36,0.0003298,2]
[357360910,1744019441774,-358.36,0.0003298,2]
[357360911,1744019441783,-358.36,0.0003298,2]
[357360912,1744019441792,-358.36,0.0003298,2]
[357360913,1744019441801,-358.36,0.0003298,2]
[357360914,1744019441811,-5015.385211,0.00032989,2]
[357360915,1744019441820,-174409.137857,0.0003299,2]
[357360916,1744019441830,-220676.949284,0.0003299,2]
[357360917,1744019441839,-151.38,0.0003299,2]
[357360918,1744019441848,-151.38,0.0003299,2]
[357360919,1744019441857,-151.38,0.0003299,2]
[357360920,1744019441867,-151.38,0.0003299,2]
[357360921,1744019441876,-250.21677222,0.00032999,7]
[357360922,1744019441885,-211.69709165,0.00032999,7]
[357360923,1744019441897,-25056.26237881,0.00033,2]
[357360924,1744019441907,-505917.32386731,0.00033,2]
[357360925,1744019441916,-423.223933,0.00033,7]
[357360926,1744019441925,-423.223933,0.00033,7]
[357360927,1744019441935,-151.0,0.00033,7]
[357360928,1744019441944,-151.0,0.00033,7]
[357360929,1744019441954,-255.530843,0.00033,7]
[357360930,1744019441963,-151.0,0.00033,7]
[357360931,1744019441972,-151.0,0.00033,7]
[357360932,1744019441981,-151.0,0.00033,7]
[357360933,1744019441991,-151.0,0.00033,7]
[357360934,1744019442000,-151.0,0.00033,7]
[357360935,1744019442009,-151.0,0.00033,7]
[357360936,1744019442018,-151.0,0.00033,7]
[357360937,1744019442027,-151.0,0.00033,7]
[357360938,1744019442037,-184.785154,0.00033,7]
[357360939,1744019442045,-184.785154,0.00033,7]
[357360940,1744019442055,-168.699544,0.00033,7]
[357360941,1744019442064,-1019.294842,0.00033,7]
[357360942,1744019442073,-168.699544,0.00033,7]
[357360943,1744019442082,-1019.294842,0.00033,7]
[357360944,1744019442091,-151.0,0.00033,7]
[357360945,1744019442100,-151.0,0.00033,7]
[357360946,1744019442110,-151.0,0.00033,7]
[357360947,1744019442119,-151.0,0.00033,7]
[357360948,1744019442128,-744.576336,0.00033,7]
[357360949,1744019442137,-248.050437,0.00033,7]
[357360950,1744019442149,-744.576336,0.00033,7]
[357360951,1744019442159,-248.050437,0.00033,7]
[357360952,1744019442168,-151.0,0.00033,7]
[357360953,1744019442178,-151.0,0.00033,7]
[357360954,1744019442187,-846.129088,0.00033,7]
[357360955,1744019442197,-846.129088,0.00033,7]
[357360956,1744019442206,-151.0,0.00033,7]
[357360957,1744019442215,-292.108191,0.00033,7]
[357360958,1744019442225,-353.839446,0.00033,7]
[357360959,1744019442234,-353.839446,0.00033,7]
[357360960,1744019442243,-4525.88526394,0.00033,30]
[357360961,1744019442253,-2493.078318,0.00033,7]
[357360962,1744019442262,-8726.930117,0.00033,7]
[357360963,1744019442271,-2493.078318,0.00033,7]
[357360964,1744019442281,-8726.930117,0.00033,7]
[357360965,1744019442290,-200.0,0.00033,2]
[357360966,1744019442299,-151.0,0.00033,7]
[357360967,1744019442309,-151.0,0.00033,7]
[357360968,1744019442318,-151.0,0.00033,7]
[357360969,1744019442327,-151.0,0.00033,7]
[357360970,1744019442336,-321.742672,0.00033,7]
[357360971,1744019442345,-591.578074,0.00033,7]
[357360972,1744019442354,-321.742672,0.00033,7]
[357360973,1744019442365,-591.578074,0.00033,7]
[357360974,1744019442375,-151.0,0.00033,7]
[357360975,1744019442385,-214.976967,0.00033,7]
[357360976,1744019442397,-214.976967,0.00033,7]
[357360977,1744019442406,-151.0,0.00033,7]
[357360978,1744019442415,-312.78119,0.00033,7]
[357360979,1744019442424,-151.0,0.00033,7]
[357360980,1744019442434,-312.78119,0.00033,7]
[357360981,1744019442443,-1195.727949,0.00033,7]
[357360982,1744019442452,-1195.727949,0.00033,7]
[357360983,1744019442462,-151.0,0.00033,2]
[357360984,1744019442471,-151.0,0.00033,7]
[357360985,1744019442481,-151.0,0.00033,7]
[357360986,1744019442490,-911.10641097,0.00033,2]
[357360987,1744019442499,-151.0,0.00033,7]
[357360988,1744019442508,-1104.1,0.00033209,2]
[357360989,1744019442518,-200.0,0.0003333,2]
[357360990,1744019442527,-15643.87724278,0.00033376,2]
[357360991,1744019442537,-1165.57095062,0.000335,2]
[357360992,1744019442546,-200.0,0.00033663,2]
[357360993,1744019442556,-287.61899177,0.00033678,2]
[357360994,1744019442565,-3991.70386852,0.00034,2]
[357360995,1744019442575,-200.0,0.00034,2]
[357360996,1744019442584,-200.0,0.0003434,2]
[357360997,1744019442593,-150.0,0.00034548,10]
[357360998,1744019442603,-154.55,0.00034716,2]
[357360999,1744019442617,-666.66667,0.000348,34]
[357361000,1744019442627,-1000.0,0.00034955,2]
[357361001,1744019442638,-793.08138933,0.00035,2]
[357361002,1744019442653,-226.98478768,0.00035,2]
[357361003,1744019442663,-298.26089446,0.00035047,2]
[357361004,1744019442672,-218.19,0.00035068,2]
[357361005,1744019442681,-254.11126272,0.000351,2]
[357361006,1744019442690,-151.38,0.000351,2]
[357361007,1744019442700,-151.38,0.000351,2]
[357361008,1744019442709,-196867.39074966,0.0003511,30]
[357361009,1744019442719,-423.223933,0.0003511,7]
[357361010,1744019442728,-423.223933,0.0003511,7]
[357361011,1744019442737,-170.043109,0.0003511,7]
[357361012,1744019442746,-151.0,0.0003511,7]
[357361013,1744019442755,-151.0,0.0003511,7]
[357361014,1744019442764,-267.85703,0.0003511,7]
[357361015,1744019442774,-151.0,0.0003511,7]
[357361016,1744019442783,-174.911139,0.0003511,7]
[357361017,1744019442793,-151.0,0.0003511,7]
[357361018,1744019442802,-151.0,0.0003511,7]
[357361019,1744019442811,-151.0,0.0003511,7]
[357361020,1744019442821,-151.0,0.0003511,7]
[357361021,1744019442830,-151.0,0.0003511,7]
[357361022,1744019442839,-184.785154,0.0003511,7]
[357361023,1744019442849,-184.785154,0.0003511,7]
[357361024,1744019442859,-168.699544,0.0003511,7]
[357361025,1744019442868,-1019.294842,0.0003511,7]
[357361026,1744019442878,-168.699544,0.0003511,7]
[357361027,1744019442887,-1019.294842,0.0003511,7]
[357361028,1744019442901,-151.0,0.0003511,7]
[357361029,1744019442910,-151.0,0.0003511,7]
[357361030,1744019442919,-151.0,0.0003511,7]
[357361031,1744019442929,-389.607548,0.0003511,7]
[357361033,1744019442938,-389.607548,0.0003511,7]
[357361035,1744019442947,-151.0,0.0003511,7]
[357361037,1744019442957,-744.576336,0.0003511,7]
[357361039,1744019442966,-248.050437,0.0003511,7]
[357361041,1744019442976,-744.576336,0.0003511,7]
[357361042,1744019442986,-248.050437,0.0003511,7]
[357361043,1744019442995,-151.0,0.0003511,7]
[357361044,1744019443005,-151.0,0.0003511,7]
[357361046,1744019443014,-846.129088,0.0003511,7]
[357361048,1744019443024,-846.129088,0.0003511,7]
[357361050,1744019443034,-151.0,0.0003511,7]
[357361051,1744019443044,-353.839446,0.0003511,7]
[357361053,1744019443054,-353.839446,0.0003511,7]
[357361054,1744019443064,-2493.078318,0.0003511,7]
[357361055,1744019443073,-8726.930117,0.0003511,7]
[357361056,1744019443083,-2493.078318,0.0003511,7]
[357361057,1744019443093,-8726.930117,0.0003511,7]
[357361058,1744019443102,-151.0,0.0003511,7]
[357361059,1744019443112,-151.0,0.0003511,7]
[357361062,1744019443121,-151.0,0.0003511,7]
[357361063,1744019443131,-256.628921,0.0003511,7]
[357361064,1744019443145,-321.742672,0.0003511,7]
[357361065,1744019443154,-591.578074,0.0003511,7]
[357361066,1744019443164,-321.742672,0.0003511,7]
[357361067,1744019443173,-591.578074,0.0003511,7]
[357361068,1744019443183,-151.0,0.0003511,7]
[357361069,1744019443193,-214.976967,0.0003511,7]
[357361070,1744019443202,-214.976967,0.0003511,7]
[357361071,1744019443212,-312.78119,0.0003511,7]
[357361072,1744019443221,-312.78119,0.0003511,7]
[357361073,1744019443230,-151.0,0.0003511,7]
[357361074,1744019443240,-151.0,0.0003511,7]
[357361075,1744019443250,-151.0,0.0003511,7]
[357361076,1744019443259,-499.91361114,0.00035173,5]
[357361077,1744019443269,-283.23177195,0.00035173,5]
[357361078,1744019443279,-504.33263209,0.00035173,5]
[357361079,1744019443288,-500.0,0.00035173,5]
[357361080,1744019443298,-500.0,0.00035173,5]
[357361081,1744019443307,-4541.50768879,0.00035308,2]
[357361082,1744019443316,-1104.1,0.00035473,2]
[357361083,1744019443326,-200.82081097,0.00035616,60]
[357361084,1744019443335,-153.69,0.00035616,2]
[357361085,1744019443345,-383.98,0.0003593,120]
[357361086,1744019443354,-13137.48318491,0.0003593,7]
[357361087,1744019443363,-151.0,0.0003593,7]
[357361088,1744019443373,-151.0,0.0003593,7]
[357361089,1744019443383,-1195.727949,0.0003593,7]
[357361090,1744019443392,-1195.727949,0.0003593,7]
[357361091,1744019443402,-643.14038601,0.00036,2]
[357361092,1744019443411,-309.29654756,0.00036416,2]
[357361093,1744019443421,-15643.87724278,0.00036421,2]
[357361094,1744019443431,-7936.04606724,0.000366,2]
[357361095,1744019443441,-151.38,0.0003699,2]
[357361096,1744019443452,-87345.8542178,0.00037,2]
[357361097,1744019443462,-185.794112,0.00037,7]
[357361098,1744019443472,-151.0,0.00037,7]
[357361099,1744019443482,-2874.470665,0.00037,7]
[357361100,1744019443492,-2874.470665,0.00037,7]
[357361101,1744019443502,-151.0,0.00037,7]
[357361102,1744019443512,-151.0,0.00037,7]
[357361104,1744019443521,-920.182166,0.00037,7]
[357361105,1744019443530,-920.182166,0.00037,7]
[357361106,1744019443539,-151.0,0.00037,7]
[357361107,1744019443549,-151.0,0.00037,7]
[357361108,1744019443557,-152.751073,0.00037,7]
[357361109,1744019443567,-675.402652,0.00037,7]
[357361110,1744019443577,-675.402652,0.00037,7]
[357361111,1744019443586,-1000.0,0.00037381,2]
[357361112,1744019443596,-433.98,0.0003741,120]
[357361113,1744019443607,-150.0,0.000376,120]
[357361114,1744019443617,-4541.50768879,0.00037726,2]
[357361115,1744019443630,-1104.1,0.00037737,2]
[357361116,1744019443639,-320.74051982,0.00037785,2]
[357361117,1744019443650,-333.50844735,0.00037808,5]
[357361118,1744019443660,-264.33726749,0.00037845,2]
[357361119,1744019443670,-800.0,0.000379,13]
[357361120,1744019443679,-817.0,0.00037973,120]
[357361122,1744019443688,-151.38,0.0003799,2]
[357361124,1744019443699,-151.38,0.0003799,2]
[357361125,1744019443709,-151.38,0.0003799,2]
[357361126,1744019443718,-405260.63951994,0.00038,2]
[357361127,1744019443728,-151.0,0.00038,7]
[357361128,1744019443737,-167.209644,0.00038,7]
[357361129,1744019443747,-151.0,0.00038,7]
[357361130,1744019443756,-151.0,0.00038,7]
[357361131,1744019443766,-151.0,0.00038,7]
[357361132,1744019443775,-2874.470665,0.00038,7]
[357361133,1744019443785,-2874.470665,0.00038,7]
[357361134,1744019443794,-676.606687,0.00038,7]
[357361135,1744019443804,-676.606687,0.00038,7]
[357361136,1744019443814,-471.778633,0.00038,7]
[357361137,1744019443823,-471.778633,0.00038,7]
[357361138,1744019443833,-151.0,0.00038,7]
[357361139,1744019443842,-151.0,0.00038,7]
[357361140,1744019443852,-151.0,0.00038,7]
[357361141,1744019443862,-423.223933,0.00038,7]
[357361142,1744019443871,-423.223933,0.00038,7]
[357361143,1744019443881,-151.0,0.00038,7]
[357361144,1744019443891,-294.994115,0.00038,7]
[357361145,1744019443901,-151.0,0.00038,7]
[357361146,1744019443911,-294.994115,0.00038,7]
[357361147,1744019443921,-151.0,0.00038,7]
[357361148,1744019443930,-151.0,0.00038,7]
[357361149,1744019443940,-151.0,0.00038,7]
[357361150,1744019443950,-151.0,0.00038,7]
[357361151,1744019443959,-151.0,0.00038,7]
[357361152,1744019443969,-151.0,0.00038,7]
[357361153,1744019443978,-151.0,0.00038,7]
[357361154,1744019443988,-270.203234,0.00038,7]
[357361155,1744019443997,-151.0,0.00038,7]
[357361156,1744019444007,-157.422807,0.00038,7]
[357361157,1744019444016,-172.678207,0.00038,7]
[357361158,1744019444026,-151.0,0.00038,7]
[357361159,1744019444035,-271.084857,0.00038,7]
[357361160,1744019444045,-151.0,0.00038,7]
[357361161,1744019444054,-184.785154,0.00038,7]
[357361162,1744019444064,-184.785154,0.00038,7]
[357361163,1744019444074,-168.699544,0.00038,7]
[357361164,1744019444083,-1019.294842,0.00038,7]
[357361165,1744019444093,-168.699544,0.00038,7]
[357361166,1744019444103,-1019.294842,0.00038,7]
[357361167,1744019444112,-151.0,0.00038,7]
[357361168,1744019444122,-151.0,0.00038,7]
[357361169,1744019444132,-151.0,0.00038,7]
[357361170,1744019444143,-389.607548,0.00038,7]
[357361171,1744019444152,-389.607548,0.00038,7]
[357361172,1744019444162,-151.0,0.00038,7]
[357361173,1744019444173,-744.576336,0.00038,7]
[357361174,1744019444183,-248.050437,0.00038,7]
[357361175,1744019444193,-744.576336,0.00038,7]
[357361176,1744019444203,-248.050437,0.00038,7]
[357361177,1744019444212,-151.0,0.00038,7]
[357361178,1744019444222,-151.0,0.00038,7]
[357361179,1744019444232,-846.129088,0.00038,7]
[357361180,1744019444241,-846.129088,0.00038,7]
[357361181,1744019444250,-151.0,0.00038,7]
[357361182,1744019444260,-353.839446,0.00038,7]
[357361183,1744019444270,-353.839446,0.00038,7]
[357361184,1744019444280,-2493.078318,0.00038,7]
[357361185,1744019444290,-8726.930117,0.00038,7]
[357361186,1744019444299,-8726.930117,0.00038,7]
[357361187,1744019444309,-2493.078318,0.00038,7]
[357361188,1744019444318,-151.0,0.00038,7]
[357361189,1744019444328,-151.0,0.00038,7]
[357361190,1744019444338,-151.0,0.00038,7]
[357361191,1744019444347,-321.742672,0.00038,7]
[357361192,1744019444357,-591.578074,0.00038,7]
[357361193,1744019444367,-321.742672,0.00038,7]
[357361194,1744019444377,-591.578074,0.00038,7]
[357361195,1744019444386,-151.0,0.00038,7]
[357361196,1744019444397,-214.976967,0.00038,7]
[357361197,1744019444407,-214.976967,0.00038,7]
[357361198,1744019444417,-151.0,0.00038,7]
[357361199,1744019444427,-151.0,0.00038,7]
[357361200,1744019444436,-312.78119,0.00038,7]
[357361201,1744019444447,-312.78119,0.00038,7]
[357361202,1744019444457,-1195.727949,0.00038,7]
[357361203,1744019444468,-920.182166,0.00038,7]
[357361204,1744019444477,-1195.727949,0.00038,7]
[357361205,1744019444487,-920.182166,0.00038,7]
[357361206,1744019444497,-151.0,0.00038,7]
[357361207,1744019444507,-151.0,0.00038,7]
[357361208,1744019444516,-151.0,0.00038,7]
[357361209,1744019444526,-151.0,0.00038,7]
[357361210,1744019444702,-675.402652,0.00038,7]
[357361211,1744019444723,-675.402652,0.00038,7]
[357361212,1744019444733,-151.0,0.00038,7]
[357361213,1744019444743,-656.62551935,0.00038417,11]
[357361214,1744019444752,-891.60094844,0.00038452,5]
[357361215,1744019444762,-406.28702162,0.00038452,5]
[357361216,1744019444772,-2000.0,0.00039036,4]
[357361217,1744019444782,-332.60791905,0.00039154,2]
[357361218,1744019444792,-15643.87724278,0.00039467,2]
[357361219,1744019444802,-453.81459046,0.00039726,15]
[357361220,1744019444812,-666.66667,0.000398,34]
[357361221,1744019444822,-151.38,0.0003999,2]
[357361222,1744019444831,-1941.53269806,0.0004,7]
[357361223,1744019444841,-194.80770791,0.0004,30]
[357361224,1744019444850,-81360.36349185,0.0004,30]
[357361225,1744019444861,-1000.0,0.0004,30]
[357361226,1744019444871,-1104.1,0.00040001,2]